bitfinex-derivatives/quotes_BTCF0:USTF0_20230106
["timestamp","ask_amount","ask_price","bid_price","bid_amount"]
[1672991634177,0.32792607,16801.0,16800.0,0.30096785]
[1672991638709,0.02722607,16801.0,16800.0,0.30096785]
[1672991639020,0.32792607,16801.0,16800.0,0.30096785]
[1672991641546,0.02722607,16801.0,16800.0,0.30096785]
[1672991641752,0.32792607,16801.0,16800.0,0.30096785]
[1672991646899,0.32792607,16801.0,16800.0,0.30089221]
[1672991651850,0.62862607,16801.0,16800.0,0.30089221]
[1672991654890,0.02722607,16801.0,16800.0,0.30089221]
[1672991655107,0.62862607,16801.0,16800.0,0.30089221]
[1672991659098,0.32792607,16801.0,16800.0,0.30089221]
[1672991671077,0.02722607,16801.0,16800.0,0.30089221]
[1672991671280,0.32792607,16801.0,16800.0,0.30089221]
[1672991674012,0.02722607,16801.0,16800.0,0.30089221]
[1672991674335,0.32792607,16801.0,16800.0,0.30089221]
[1672991675807,0.02722607,16801.0,16800.0,0.30089221]
[1672991676022,0.32792607,16801.0,16800.0,0.30089221]
[1672991679264,0.02722607,16801.0,16800.0,0.30089221]
[1672991679482,0.32792607,16801.0,16800.0,0.30089221]
[1672991680850,0.02722607,16801.0,16800.0,0.30089221]
[1672991681056,0.32792607,16801.0,16800.0,0.30089221]
[1672991681694,0.02722607,16801.0,16800.0,0.30089221]
[1672991681905,0.32792607,16801.0,16800.0,0.30089221]
[1672991682315,0.02722607,16801.0,16800.0,0.30089221]
[1672991682527,0.32792607,16801.0,16800.0,0.30089221]
[1672991701350,0.32792607,16801.0,16800.0,0.30069453]
[1672991702087,0.02722607,16801.0,16800.0,0.30069453]
[1672991707118,0.32792607,16801.0,16800.0,0.30069453]
[1672991707549,0.32780733,16801.0,16800.0,0.30069453]
[1672991709751,0.02710733,16801.0,16800.0,0.30069453]
[1672991709956,0.32780733,16801.0,16800.0,0.30069453]
[1672991721840,0.02710733,16801.0,16800.0,0.30069453]
[1672991722266,0.32780733,16801.0,16800.0,0.30069453]
[1672991753153,0.02710733,16801.0,16800.0,0.30069453]
[1672991753366,0.32780733,16801.0,16800.0,0.30069453]
[1672991760423,0.32780733,16801.0,16800.0,0.30057986]
[1672991760949,0.02710733,16801.0,16800.0,0.30057986]
[1672991761158,0.32780733,16801.0,16800.0,0.30057986]
[1672991763996,0.02710733,16801.0,16800.0,0.30057986]
[1672991770201,0.32780733,16801.0,16800.0,0.30057986]
[1672991771986,0.02710733,16801.0,16800.0,0.30057986]
[1672991777356,0.02710733,16801.0,16800.0,0.38968576]
[1672991781558,0.02710733,16801.0,16800.0,0.30057986]
[1672991785444,0.32780733,16801.0,16800.0,0.30057986]
[1672991794913,0.02710733,16801.0,16800.0,0.30057986]
[1672991804689,0.32780733,16801.0,16800.0,0.30057986]
[1672991812253,0.32780733,16801.0,16800.0,0.3004018]
[1672991830979,0.02710733,16801.0,16800.0,0.3004018]
[1672991831198,0.32780733,16801.0,16800.0,0.3004018]
[1672991834970,0.02710733,16801.0,16800.0,0.3004018]
[1672991835174,0.32780733,16801.0,16800.0,0.3004018]
[1672991839719,0.02710733,16801.0,16800.0,0.3004018]
[1672991840266,0.32780733,16801.0,16800.0,0.3004018]
[1672991840770,0.02710733,16801.0,16800.0,0.3004018]
[1672991840982,0.32780733,16801.0,16800.0,0.3004018]
[1672991842761,0.02710733,16801.0,16800.0,0.3004018]
[1672991842976,0.32780733,16801.0,16800.0,0.3004018]
[1672991843916,0.02710733,16801.0,16800.0,0.3004018]
[1672991844129,0.32780733,16801.0,16800.0,0.3004018]
[1672991845074,0.02710733,16801.0,16800.0,0.3004018]
[1672991845284,0.32780733,16801.0,16800.0,0.3004018]
[1672991846009,0.02710733,16801.0,16800.0,0.3004018]
[1672991846219,0.32780733,16801.0,16800.0,0.3004018]
[1672991855028,0.02710733,16801.0,16800.0,0.3004018]
[1672991855244,0.32780733,16801.0,16800.0,0.3004018]
[1672991859133,0.02710733,16801.0,16800.0,0.3004018]
[1672991859343,0.32780733,16801.0,16800.0,0.3004018]
[1672991861241,0.02710733,16801.0,16800.0,0.3004018]
[1672991861445,0.32780733,16801.0,16800.0,0.3004018]
[1672991862730,0.02710733,16801.0,16800.0,0.3004018]
[1672991863042,0.32780733,16801.0,16800.0,0.3004018]
[1672991863776,0.02710733,16801.0,16800.0,0.3004018]
[1672991864303,0.32780733,16801.0,16800.0,0.3004018]
[1672991867033,0.32780733,16801.0,16800.0,0.3002836]
[1672991867985,0.02710733,16801.0,16800.0,0.3002836]
[1672991872920,0.32780733,16801.0,16800.0,0.3002836]
[1672991901099,0.02710733,16801.0,16800.0,0.3002836]
[1672991901303,0.32780733,16801.0,16800.0,0.3002836]
[1672991904357,0.02710733,16801.0,16800.0,0.3002836]
[1672991904559,0.32780733,16801.0,16800.0,0.3002836]
[1672991905290,0.02710733,16801.0,16800.0,0.3002836]
[1672991905508,0.32780733,16801.0,16800.0,0.3002836]
[1672991911194,0.02710733,16801.0,16800.0,0.3002836]
[1672991911405,0.32780733,16801.0,16800.0,0.3002836]
[1672991914019,0.02710733,16801.0,16800.0,0.3002836]
[1672991914240,0.32780733,16801.0,16800.0,0.3002836]
[1672991915288,0.32780733,16801.0,16800.0,0.30013171]
[1672991915809,0.02710733,16801.0,16800.0,0.30013171]
[1672991916018,0.32780733,16801.0,16800.0,0.30013171]
[1672991922761,0.02710733,16801.0,16800.0,0.30013171]
[1672991922972,0.32780733,16801.0,16800.0,0.30013171]
[1672991935361,0.02710733,16801.0,16800.0,0.30013171]
[1672991935581,0.32780733,16801.0,16800.0,0.30013171]
[1672991969319,0.32780733,16801.0,16800.0,0.30003656]
[1672991990032,0.02710733,16801.0,16800.0,0.38914246]
[1672991991404,0.02710733,16801.0,16800.0,0.30003656]
[1672991991616,0.02710733,16801.0,16800.0,0.38914246]
[1672991993402,0.02710733,16801.0,16800.0,0.30003656]
[1672991996657,0.02710733,16801.0,16800.0,0.38914246]
[1672991997380,0.02710733,16801.0,16800.0,0.30003656]
[1672991997804,0.02710733,16801.0,16800.0,0.38914246]
[1672991998548,0.02710733,16801.0,16800.0,0.30003656]
[1672991998968,0.02710733,16801.0,16800.0,0.38914246]
[1672991999183,0.02710733,16801.0,16800.0,0.30003656]
[1672992002021,0.016,16801.0,16800.0,0.30003656]
[1672992004121,0.016,16801.0,16798.0,1.08633656]
[1672992004332,0.016,16801.0,16800.0,0.3]
[1672992007277,0.016,16801.0,16800.0,0.43372193]
[1672992010109,0.016,16801.0,16800.0,0.52286674]
[1672992012643,0.016,16801.0,16800.0,0.38914481]
[1672992017263,0.01577536,16801.0,16800.0,0.38914481]
[1672992018733,0.01577536,16801.0,16800.0,0.52286674]
[1672992019052,0.01577536,16801.0,16800.0,0.38914481]
[1672992019363,0.01577536,16801.0,16800.0,0.52286674]
[1672992022620,0.01577536,16801.0,16800.0,0.43372193]
[1672992025887,0.31647536,16801.0,16800.0,0.43372193]
[1672992026099,0.31647536,16801.0,16800.0,0.61201784]
[1672992026829,0.31647536,16801.0,16800.0,0.43372193]
[1672992027360,0.31647536,16801.0,16800.0,0.61201784]
[1672992027573,0.31647536,16801.0,16800.0,0.43372193]
[1672992029769,0.01577536,16801.0,16800.0,0.43372193]
[1672992029979,0.31647536,16801.0,16800.0,0.43372193]
[1672992035564,0.29313996,16801.0,16800.0,0.43372193]
[1672992035776,0.29313996,16801.0,16800.0,0.61201784]
[1672992036298,0.29313996,16801.0,16800.0,1.10464306]
[1672992037346,0.29313996,16801.0,16800.0,0.61201784]
[1672992037564,0.29313996,16801.0,16800.0,1.10464146]
[1672992037770,0.3,16803.0,16800.0,0.97091953]
[1672992037984,0.3007,16802.0,16801.0,0.22297825]
[1672992039764,0.3257,16802.0,16801.0,0.22797825]
[1672992042708,0.3257,16802.0,16801.0,0.13878695]
[1672992043129,0.3257,16802.0,16801.0,0.22798942]
[1672992043334,0.3257,16802.0,16801.0,0.13878695]
[1672992043544,0.3257,16802.0,16801.0,0.22798954]
[1672992043754,0.3257,16802.0,16801.0,0.22798658]
[1672992043968,0.025,16802.0,16801.0,0.22798658]
[1672992044168,0.3257,16802.0,16801.0,0.22798658]
[1672992044706,0.3257,16802.0,16801.0,0.09419963]
[1672992050902,0.3257,16802.0,16801.0,0.005]
[1672992051949,0.3257,16802.0,16801.0,0.09419963]
[1672992052270,0.3257,16802.0,16801.0,0.005]
[1672992052482,0.3257,16802.0,16801.0,0.09419963]
[1672992052692,0.296043,16802.0,16801.0,0.13878695]
[1672992052899,0.296043,16802.0,16801.0,0.22798549]
[1672992053427,0.296043,16802.0,16801.0,0.22798436]
[1672992055429,0.296043,16802.0,16801.0,0.13878695]
[1672992055636,0.296043,16802.0,16801.0,0.22798627]
[1672992055847,0.296043,16802.0,16801.0,0.13878695]
[1672992056584,0.296043,16802.0,16801.0,0.22798551]
[1672992057313,0.296043,16802.0,16801.0,0.13878695]
[1672992057528,0.296043,16802.0,16801.0,0.22798531]
[1672992057844,0.296043,16802.0,16801.0,0.13878695]
[1672992058159,0.296043,16802.0,16801.0,0.22798481]
[1672992058572,0.296043,16802.0,16801.0,0.13878695]
[1672992063411,0.296043,16802.0,16801.0,0.22798753]
[1672992069495,0.3,16803.0,16801.0,0.22798753]
[1672992069708,0.3,16803.0,16802.0,0.3]
[1672992069925,0.6007,16803.0,16802.0,0.3]
[1672992071288,0.6847,16803.0,16802.0,0.3]
[1672992071487,0.6007,16803.0,16802.0,0.3]
[1672992071696,0.7177,16803.0,16802.0,0.306]
[1672992075495,0.7177,16803.0,16802.0,0.39520058]
[1672992080636,0.4177,16803.0,16802.0,0.39520058]
[1672992080846,0.3089,16803.0,16802.0,0.39520058]
[1672992084850,0.0082,16803.0,16802.0,0.39520058]
[1672992085059,0.3089,16803.0,16802.0,0.39520058]
[1672992091577,0.0082,16803.0,16802.0,0.39520058]
[1672992091792,0.3089,16803.0,16802.0,0.39520058]
[1672992092519,0.3089,16803.0,16802.0,0.52898753]
[1672992096639,0.3089,16803.0,16802.0,0.43978695]
[1672992097160,0.3089,16803.0,16802.0,0.5289591]
[1672992097369,0.3089,16803.0,16802.0,0.43978695]
[1672992097580,0.3089,16803.0,16802.0,0.52895911]
[1672992098108,0.0082,16803.0,16802.0,0.52895911]
[1672992098527,0.0082,16803.0,16802.0,0.43978695]
[1672992100513,0.28,16804.0,16803.0,0.1]
[1672992100728,0.28,16804.0,16803.0,0.18914772]
[1672992101565,0.298,16804.0,16803.0,0.19914772]
[1672992104093,0.018,16804.0,16803.0,0.19914772]
[1672992104309,0.3187,16804.0,16803.0,0.19914772]
[1672992107877,0.3187,16804.0,16803.0,0.11]
[1672992108299,0.3187,16804.0,16803.0,0.19914772]
[1672992112510,0.3187,16804.0,16803.0,0.11]
[1672992136059,0.6194,16804.0,16803.0,0.11]
[1672992143009,0.3187,16804.0,16803.0,0.11]
[1672992144687,0.018,16804.0,16803.0,0.11]
[1672992144901,0.3187,16804.0,16803.0,0.11]
[1672992148476,0.3187,16804.0,16803.0,0.10985951]
[1672992153202,0.31855544,16804.0,16803.0,0.10985951]
[1672992170656,0.31855544,16804.0,16803.0,0.24358109]
[1672992176541,0.31855544,16804.0,16803.0,4.01358109]
[1672992176963,0.31855544,16804.0,16803.0,0.24358109]
[1672992180536,0.31855544,16804.0,16803.0,0.10985951]
[1672992190003,0.01785544,16804.0,16803.0,0.10985951]
[1672992190214,0.31855544,16804.0,16803.0,0.10985951]
[1672992194747,0.01785544,16804.0,16803.0,0.10985951]
[1672992194944,0.31855544,16804.0,16803.0,0.10985951]
[1672992195149,0.01785544,16804.0,16803.0,0.10985951]
[1672992195364,0.31855544,16804.0,16803.0,0.10985951]
[1672992202613,0.31855544,16804.0,16803.0,0.1096341]
[1672992236064,0.01785544,16804.0,16803.0,0.1096341]
[1672992236283,0.61925544,16804.0,16803.0,0.1096341]
[1672992249603,0.61925544,16804.0,16803.0,0.01]
[1672992254332,0.61925544,16804.0,16803.0,0.00980965]
[1672992259807,0.01785544,16804.0,16803.0,0.00980965]
[1672992260016,0.61925544,16804.0,16803.0,0.00980965]
[1672992265485,0.01785544,16804.0,16803.0,0.00980965]
[1672992265805,0.61925544,16804.0,16803.0,0.00980965]
[1672992272033,0.01785544,16804.0,16803.0,0.00980965]
[1672992272430,0.31855544,16804.0,16803.0,0.00980965]
[1672992297037,0.01785544,16804.0,16803.0,0.00980965]
[1672992297234,0.31855544,16804.0,16803.0,0.00980965]
[1672992299558,0.31855544,16804.0,16803.0,0.09900339]
[1672992299770,0.31855544,16804.0,16803.0,0.00980965]
[1672992305751,0.31855544,16804.0,16803.0,0.00957704]
[1672992308680,0.31855544,16804.0,16803.0,0.09877078]
[1672992308895,0.31855544,16804.0,16803.0,0.00957704]
[1672992309117,0.31855544,16804.0,16803.0,0.09877078]
[1672992309327,0.31855544,16804.0,16803.0,0.00957704]
[1672992309637,0.31855544,16804.0,16803.0,0.09877078]
[1672992311524,0.31855544,16804.0,16803.0,0.00957704]
[1672992312158,0.31855544,16804.0,16803.0,0.09877078]
[1672992319612,0.01785544,16804.0,16803.0,0.09877078]
[1672992319823,0.31855544,16804.0,16803.0,0.09877078]
[1672992323193,0.31855544,16804.0,16803.0,0.23249236]
[1672992324244,0.31855544,16804.0,16803.0,0.09877078]
[1672992326337,0.31855544,16804.0,16803.0,0.23249236]
[1672992326975,0.01785544,16804.0,16803.0,0.23249236]
[1672992332550,0.01785544,16804.0,16803.0,0.09877078]
[1672992332761,0.01785544,16804.0,16803.0,0.23249236]
[1672992333279,0.01785544,16804.0,16803.0,1.32015194]
[1672992334229,0.01785544,16804.0,16803.0,1.27561759]
[1672992334955,0.01785544,16804.0,16803.0,0.9168812]
[1672992335278,0.01785544,16804.0,16803.0,0.73854567]
[1672992336111,0.01785544,16804.0,16803.0,0.82772614]
[1672992336638,0.01785544,16804.0,16803.0,0.09875751]
[1672992336849,0.01785544,16804.0,16803.0,0.00957704]
[1672992337067,0.31855544,16804.0,16803.0,0.00957704]
[1672992337379,0.31855544,16804.0,16803.0,0.09875751]
[1672992337582,0.01785544,16804.0,16803.0,0.09875751]
[1672992337797,0.01785544,16804.0,16803.0,0.73854567]
[1672992339372,0.01785544,16804.0,16803.0,1.4093952]
[1672992339586,0.01785544,16804.0,16803.0,0.9168812]
[1672992339903,0.01785544,16804.0,16803.0,0.73854567]
[1672992341786,0.01785544,16804.0,16803.0,0.82769611]
[1672992342100,0.01785544,16804.0,16803.0,0.73854567]
[1672992344325,0.01785544,16804.0,16803.0,0.9168812]
[1672992345788,0.01785544,16804.0,16803.0,1.40939254]
[1672992345996,0.01785544,16804.0,16803.0,0.9168812]
[1672992346408,0.01785544,16804.0,16803.0,1.40939162]
[1672992346723,0.01785544,16804.0,16803.0,0.9168812]
[1672992347361,0.01785544,16804.0,16803.0,1.40939121]
[1672992347884,0.01785544,16804.0,16803.0,0.9168812]
[1672992348095,0.01785544,16804.0,16803.0,1.40939076]
[1672992348508,0.01785544,16804.0,16803.0,0.82768967]
[1672992349040,0.01785544,16804.0,16803.0,0.73854567]
[1672992354716,0.01785544,16804.0,16803.0,0.9168812]
[1672992354920,0.01785544,16804.0,16803.0,1.71008944]
[1672992355450,0.01785544,16804.0,16803.0,1.57632081]
[1672992355653,0.01785544,16804.0,16803.0,1.57625278]
[1672992356609,0.01785544,16804.0,16803.0,1.70996482]
[1672992357013,0.01785544,16804.0,16803.0,1.21745658]
[1672992357656,0.01785544,16804.0,16803.0,1.70996338]
[1672992358069,0.01785544,16804.0,16803.0,1.57625134]
[1672992361337,0.01785544,16804.0,16803.0,1.71000664]
[1672992361855,0.01785544,16804.0,16803.0,1.57625134]
[1672992370592,0.01785544,16804.0,16803.0,1.79912122]
[1672992371227,0.01785544,16804.0,16803.0,1.62078569]
[1672992372152,0.01785544,16804.0,16803.0,1.79928619]
[1672992372792,0.01785544,16804.0,16803.0,1.62078569]
[1672992373631,0.01785544,16804.0,16803.0,1.79928738]
[1672992373947,0.01785544,16804.0,16803.0,1.62078569]
[1672992374885,0.01785544,16804.0,16803.0,1.7992911]
[1672992375096,0.01785544,16804.0,16803.0,1.62078569]
[1672992375734,0.01785544,16804.0,16803.0,1.799291]
[1672992375933,0.01785544,16804.0,16803.0,1.79930814]
[1672992376364,0.01785544,16804.0,16803.0,1.62078569]
[1672992377312,0.01785544,16804.0,16803.0,1.79931099]
[1672992377524,0.01785544,16804.0,16803.0,1.57644111]
[1672992378257,0.01785544,16804.0,16803.0,1.79931099]
[1672992378683,0.01785544,16804.0,16803.0,1.62078569]
[1672992382143,0.01785544,16804.0,16803.0,1.57647737]
[1672992384248,0.01785544,16804.0,16803.0,1.79934725]
[1672992384666,0.01785544,16804.0,16803.0,1.57647737]
[1672992394131,0.01785544,16804.0,16803.0,1.40969111]
[1672992394350,0.01785544,16804.0,16803.0,0.91718431]
[1672992394554,0.01785544,16804.0,16803.0,1.4097156]
[1672992395811,0.01785544,16804.0,16803.0,0.91718431]
[1672992396756,0.01785544,16804.0,16803.0,1.40971551]
[1672992398234,0.01785544,16804.0,16803.0,1.27580177]
[1672992399188,0.01785544,16804.0,16803.0,1.57650177]
[1672992402551,0.01785544,16804.0,16803.0,1.57629456]
[1672992403707,0.01785544,16804.0,16803.0,1.79916444]
[1672992403905,0.01785544,16804.0,16803.0,1.62060288]
[1672992405176,0.6007,16807.0,16804.0,0.3]
[1672992405386,0.6007,16807.0,16805.0,0.0892513]
[1672992406229,0.6117,16807.0,16805.0,0.0892513]
[1672992407585,0.6007,16807.0,16805.0,0.0892513]
[1672992407808,0.6107,16807.0,16805.0,0.0992513]
[1672992414850,0.31,16807.0,16805.0,0.0992513]
[1672992415158,0.6107,16807.0,16805.0,0.0992513]
[1672992424081,0.31,16807.0,16805.0,0.0992513]
[1672992424294,0.3007,16806.0,16805.0,0.0992513]
[1672992425143,0.3007,16806.0,16805.0,0.01]
[1672992426194,0.3107,16806.0,16805.0,0.009]
[1672992429036,0.3107,16806.0,16805.0,0.0982513]
[1672992432298,0.3107,16806.0,16805.0,0.23212826]
[1672992435029,0.3107,16806.0,16805.0,0.0982513]
[1672992445120,0.3107,16806.0,16805.0,0.23212826]
[1672992449953,0.3107,16806.0,16805.0,0.0982513]
[1672992453111,0.3107,16806.0,16805.0,0.09815546]
[1672992459951,0.01,16806.0,16805.0,0.09815546]
[1672992460258,0.3107,16806.0,16805.0,0.09815546]
[1672992461407,0.01,16806.0,16805.0,0.09815546]
[1672992461624,0.3107,16806.0,16805.0,0.09815546]
[1672992463618,0.3107,16806.0,16805.0,0.14278112]
[1672992466553,0.01,16806.0,16805.0,0.14278112]
[1672992473086,0.01,16806.0,16805.0,0.23199397]
[1672992481075,0.01,16806.0,16805.0,0.14278112]
[1672992483183,0.01,16806.0,16805.0,0.67987471]
[1672992483916,0.01,16806.0,16805.0,0.1427174]
[1672992488549,0.01,16806.0,16805.0,0.23193783]
[1672992493589,0.01,16806.0,16805.0,0.1427174]
[1672992499789,0.01,16806.0,16805.0,0.32122001]
[1672992500207,0.01,16806.0,16805.0,0.81369348]
[1672992502415,0.01,16806.0,16805.0,0.67988024]
[1672992507470,0.01,16806.0,16805.0,0.67966187]
[1672992509667,0.01,16806.0,16805.0,0.81353563]
[1672992510095,0.01,16806.0,16805.0,0.32106216]
[1672992510298,0.01,16806.0,16805.0,0.81353588]
[1672992510719,0.01,16806.0,16805.0,0.32106216]
[1672992511357,0.01,16806.0,16805.0,0.8135382]
[1672992511775,0.01,16806.0,16805.0,0.67966444]
[1672992512191,0.01,16806.0,16805.0,0.81353251]
[1672992513242,0.01,16806.0,16805.0,0.67966444]
[1672992515245,0.01,16806.0,16805.0,0.81353508]
[1672992515666,0.01,16806.0,16805.0,0.81353703]
[1672992516078,0.01,16806.0,16805.0,0.14255838]
[1672992517139,0.01,16806.0,16805.0,0.32106099]
[1672992517348,0.01,16806.0,16805.0,0.81353696]
[1672992518612,0.01,16806.0,16805.0,0.32106099]
[1672992519245,0.01,16806.0,16805.0,0.14255838]
[1672992519556,0.01,16806.0,16805.0,0.32106099]
[1672992519767,0.01,16806.0,16805.0,0.81353738]
[1672992523658,0.01,16806.0,16805.0,0.67966479]
[1672992529325,0.01,16806.0,16805.0,0.81352005]
[1672992529547,0.01,16806.0,16805.0,0.14254105]
[1672992533232,0.01,16806.0,16805.0,0.32104366]
[1672992533446,0.01,16806.0,16805.0,0.81352573]
[1672992533863,0.01,16806.0,16805.0,0.32104366]
[1672992534068,0.01,16806.0,16805.0,0.81352514]
[1672992534916,0.01,16806.0,16805.0,0.67966988]
[1672992541649,0.01,16806.0,16805.0,0.14257327]
[1672992546686,0.01,16806.0,16805.0,0.32107588]
[1672992546895,0.01,16806.0,16805.0,0.14257327]
[1672992547099,0.3107,16806.0,16805.0,0.32107588]
[1672992547315,0.3107,16806.0,16805.0,0.14257327]
[1672992547529,0.3107,16806.0,16805.0,0.32107588]
[1672992548690,0.3107,16806.0,16805.0,0.81355422]
[1672992549095,0.01,16806.0,16805.0,0.81355422]
[1672992549523,0.01,16806.0,16805.0,0.67966674]
[1672992552260,0.01,16806.0,16805.0,0.98036674]
[1672992553942,0.01,16806.0,16805.0,1.20323662]
[1672992554144,0.01,16806.0,16805.0,0.98036674]
[1672992554362,0.01,16806.0,16805.0,1.20323662]
[1672992554573,0.01,16806.0,16805.0,0.98036674]
[1672992555103,0.01,16806.0,16805.0,0.98025396]
[1672992559203,0.01,16806.0,16805.0,0.67955396]
[1672992560460,0.01,16806.0,16805.0,0.90242384]
[1672992561196,0.01,16806.0,16805.0,0.72392123]
[1672992562881,0.3,16808.0,16805.0,0.76434822]
[1672992563197,0.3,16808.0,16807.0,0.08919338]
[1672992563835,0.31,16808.0,16807.0,0.08919338]
[1672992564568,0.31,16808.0,16807.0,0.09819338]
[1672992564981,0.01,16808.0,16807.0,0.09819338]
[1672992567090,0.01,16808.0,16807.0,0.39819338]
[1672992572137,0.01,16808.0,16807.0,0.309]
[1672992572554,0.01,16808.0,16807.0,0.39819338]
[1672992573707,0.01,16808.0,16807.0,0.309]
[1672992573921,0.3107,16808.0,16807.0,0.309]
[1672992575603,0.3107,16808.0,16807.0,0.39819338]
[1672992578019,0.01,16808.0,16807.0,0.39819338]
[1672992578228,0.3107,16808.0,16807.0,0.39819338]
[1672992578642,0.3107,16808.0,16807.0,0.309]
[1672992579282,0.3107,16808.0,16807.0,0.39819338]
[1672992580651,0.01,16808.0,16807.0,0.39819338]
[1672992580853,0.3107,16808.0,16807.0,0.39819338]
[1672992583903,0.01,16808.0,16807.0,0.39819338]
[1672992587794,0.3107,16808.0,16807.0,0.39819338]
[1672992588632,0.01,16808.0,16807.0,0.39819338]
[1672992588845,0.3107,16808.0,16807.0,0.39819338]
[1672992594087,0.01,16808.0,16807.0,0.39819338]
[1672992594301,0.3107,16808.0,16807.0,0.39819338]
[1672992594513,0.01,16808.0,16807.0,0.39819338]
[1672992594720,0.3107,16808.0,16807.0,0.39819338]
[1672992595354,0.01,16808.0,16807.0,0.39819338]
[1672992595775,0.3107,16808.0,16807.0,0.39819338]
[1672992596819,0.01,16808.0,16807.0,0.39819338]
[1672992597034,0.3107,16808.0,16807.0,0.39819338]
[1672992597461,0.01,16808.0,16807.0,0.39819338]
[1672992597662,0.3107,16808.0,16807.0,0.39819338]
[1672992601024,0.3107,16808.0,16807.0,0.3980207]
[1672992606392,0.3107,16808.0,16807.0,0.30882732]
[1672992606921,0.3107,16808.0,16807.0,0.3980207]
[1672992608595,0.3107,16808.0,16807.0,0.30882732]
[1672992609020,0.3107,16808.0,16807.0,0.3980207]
[1672992609225,0.3107,16808.0,16807.0,0.30882732]
[1672992613338,0.3107,16808.0,16807.0,0.3980207]
[1672992625105,0.01,16808.0,16807.0,0.3980207]
[1672992625325,0.3107,16808.0,16807.0,0.3980207]
[1672992626884,0.01,16808.0,16807.0,0.3980207]
[1672992627097,0.3107,16808.0,16807.0,0.3980207]
[1672992630779,0.3107,16808.0,16807.0,0.30882732]
[1672992632048,0.3107,16808.0,16807.0,0.3980207]
[1672992632362,0.3107,16808.0,16807.0,0.30882732]
[1672992632560,0.3107,16808.0,16807.0,0.3980207]
[1672992639814,0.01,16808.0,16807.0,0.3980207]
[1672992640029,0.3107,16808.0,16807.0,0.3980207]
[1672992643274,0.3107,16808.0,16807.0,0.30882732]
[1672992644022,0.01,16808.0,16807.0,0.30882732]
[1672992644336,0.3107,16808.0,16807.0,0.30882732]
[1672992645388,0.3107,16808.0,16807.0,0.30870921]
[1672992652426,0.3107,16808.0,16807.0,0.39790259]
[1672992652646,0.3107,16808.0,16807.0,0.30870921]
[1672992653481,0.3107,16808.0,16807.0,0.39790259]
[1672992653683,0.01,16808.0,16807.0,0.69860259]
[1672992653894,0.01,16808.0,16807.0,0.83239266]
[1672992659789,0.01,16808.0,16807.0,0.74319928]
[1672992660002,0.01,16808.0,16807.0,0.83243335]
[1672992660211,0.01,16808.0,16807.0,0.74319928]
[1672992660723,0.01,16808.0,16807.0,0.83243299]
[1672992661368,0.02,16808.0,16807.0,0.82772378]
[1672992661899,0.02,16808.0,16807.0,0.83372378]
[1672992662313,0.6007,16810.0,16807.0,0.82372378]
[1672992662524,0.02,16808.0,16807.0,0.83372378]
[1672992662731,0.6007,16810.0,16807.0,0.68993371]
[1672992662942,0.02,16808.0,16807.0,0.83372378]
[1672992663371,0.02,16808.0,16807.0,0.39923371]
[1672992663572,0.02,16808.0,16807.0,0.31]
[1672992664511,0.3207,16808.0,16807.0,0.31]
[1672992674081,0.02,16808.0,16807.0,0.31]
[1672992674295,0.3207,16808.0,16807.0,0.31]
[1672992674707,0.02,16808.0,16807.0,0.31]
[1672992674917,0.3207,16808.0,16807.0,0.31]
[1672992683752,0.02,16808.0,16807.0,0.31]
[1672992683957,0.3207,16808.0,16807.0,0.31]
[1672992684598,0.6207,16808.0,16807.0,0.31]
[1672992685327,0.6207,16808.0,16807.0,0.01]
[1672992688691,0.32,16808.0,16807.0,0.01]
[1672992688901,0.9214,16808.0,16807.0,0.01]
[1672992690482,0.9214,16808.0,16807.0,0.00983375]
[1672992692580,1.216768,16808.0,16807.0,0.00983375]
[1672992692789,1.818168,16808.0,16807.0,0.00983375]
[1672992693741,1.216768,16808.0,16807.0,0.00983375]
[1672992694055,1.818168,16808.0,16807.0,0.00983375]
[1672992718542,1.216768,16808.0,16807.0,0.00983375]
[1672992718748,1.517468,16808.0,16807.0,0.00983375]
[1672992724106,1.217468,16808.0,16807.0,0.00983375]
[1672992726837,0.916768,16808.0,16807.0,0.00983375]
[1672992727048,1.217468,16808.0,16807.0,0.00983375]
[1672992730414,1.217468,16808.0,16807.0,0.09906746]
[1672992734200,1.217468,16808.0,16807.0,0.00983375]
[1672992741977,1.217468,16808.0,16807.0,0.00962035]
[1672992743024,0.916768,16808.0,16807.0,0.00962035]
[1672992743238,1.217468,16808.0,16807.0,0.00962035]
[1672992744079,0.916768,16808.0,16807.0,0.00962035]
[1672992744289,1.217468,16808.0,16807.0,0.00962035]
[1672992745135,0.916768,16808.0,16807.0,0.00962035]
[1672992745332,1.217468,16808.0,16807.0,0.00962035]
[1672992748478,1.21724509,16808.0,16807.0,0.00962035]
[1672992751003,1.21724509,16808.0,16807.0,0.09885406]
[1672992751213,0.91654509,16808.0,16807.0,0.09885406]
[1672992752486,0.01977709,16808.0,16807.0,0.09885406]
[1672992753111,0.01977709,16808.0,16807.0,0.00962035]
[1672992753321,0.01977709,16808.0,16807.0,0.09885406]
[1672992754579,0.01977709,16808.0,16807.0,0.23264413]
[1672992755217,0.01977709,16808.0,16807.0,0.09885406]
[1672992756371,0.01977709,16808.0,16807.0,0.23264413]
[1672992756576,0.01977709,16808.0,16807.0,0.09885406]
[1672992762886,0.31977709,16808.0,16807.0,0.09885406]
[1672992763097,0.01977709,16808.0,16807.0,0.09885406]
[1672992764783,0.31977709,16808.0,16807.0,0.09885406]
[1672992766360,0.01977709,16808.0,16807.0,0.09885406]
[1672992767306,0.31977709,16808.0,16807.0,0.09885406]
[1672992768139,0.01977709,16808.0,16807.0,0.09885406]
[1672992774139,0.01977709,16808.0,16807.0,0.23264413]
[1672992774349,0.01977709,16808.0,16807.0,0.09885406]
[1672992774770,0.01977709,16808.0,16807.0,0.23264413]
[1672992780547,0.01977709,16808.0,16807.0,0.09885406]
[1672992780871,0.01977709,16808.0,16807.0,0.23264413]
[1672992781183,0.01977709,16808.0,16807.0,0.09885406]
[1672992781391,0.01977709,16808.0,16807.0,0.23264413]
[1672992782657,0.01977709,16808.0,16807.0,0.09885406]
[1672992783076,0.01977709,16808.0,16807.0,0.23264413]
[1672992783488,0.01977709,16808.0,16807.0,0.09885406]
[1672992783705,0.01977709,16808.0,16807.0,0.23264413]
[1672992784758,0.01977709,16808.0,16807.0,0.09885406]
[1672992785294,0.01977709,16808.0,16807.0,0.23264413]
[1672992787711,0.01977709,16808.0,16807.0,0.14341042]
[1672992788132,0.01977709,16808.0,16807.0,0.23268892]
[1672992789179,0.01977709,16808.0,16807.0,0.14341042]